[Event "Czech Extraliga 2023-24"]
[Site "Czech Republic"]
[Date "2024.04.06"]
[Round "9.6"]
[White "Straka, Vojtech"]
[Black "Nemec, Jachym"]
[Result "1/2-1/2"]
[ECO "D35"]
[WhiteElo "2439"]
[BlackElo "2393"]
[Annotator "TA"]
[PlyCount "145"]
[EventDate "2023.10.14"]
[EventCountry "CZE"]
[SourceTitle "playchess.com"]
[Source "ChessBase"]
[SourceQuality "1"]
[TimeControl "40/5400+30:1800+30"]

{[%evp 11,145,39,25,7,16,13,21,1,19,13,20,1,14,8,5,0,20,19,13,22,35,43,37,31,52,31,24,0,6,0,26,-11,0,0,11,0,0,-12,-22,-18,0,0,0,0,0,-70,-59,-79,170,-13,-31,-127,-60,-75,-77,-79,-64,-62,-49,-68,-68,-61,-62,-58,-49,-45,-32,-28,-25,-15,-36,-110,-116,-114,-133,-209,-119,-130,-125,-131,-128,-139,-131,-228,-192,-247,-127,-113,0,-107,-107,-177,-196,-196,-184,-183,-141,-141,-141,-141,-80,-141,-141,-141,-141,-141,-141,-141,-141,-141,-141,-395,-8,-8,-8,-8,-8,-8,-8,-8,-8,-8,0,-60,-60,-60,-8,-8,-8,-8,-8,-8,-8,-8,-8,-8]} 1. c4 {[%emt 0:00:04]} e6 {[%emt 0:00:19]} 2. Nc3 {[%emt 0:00:30]} d5 {[%emt 0:00:11]} 3. d4 {[%emt 0:00:26]} Nf6 {[%emt 0:00:31]} 4. cxd5 {[%emt 0:01:11]} exd5 {[%emt 0:00:10]} 5. Bg5 {[%emt 0:00:11]} Bb4 {[%emt 0:00:33]} 6. e3 {[%emt 0:14:29]} h6 {[%emt 0:00:14]} 7. Bxf6 {[%emt 0:00:56]} Qxf6 {[%emt 0:00:08]} 8. Qa4+ {[%emt 0:00:11]} Nc6 {[%emt 0:00:05][%cal Bb8c6,Bc6e7,Be7f5,Bf5h4][%mdl 32]} 9. Bb5 {[%emt 0:00:23]} Bxc3+ {[%emt 0:14:56]} 10. bxc3 {[%emt 0:00:15]} O-O {[%emt 0:00:16]} 11. Nf3 {[%emt 0:04:51]} Bg4 {[%emt 0:09:29]} 12. Be2 {[%emt 0:02:20]} Ne7 {[%emt 0:09:38]} 13. h3 {[%emt 0:03:46]} Bxf3 {[%emt 0:01:42]} 14. Bxf3 {[%emt 0:00:29]} c6 {[%emt 0:00:53]} 15. c4 {[%emt 0:13:40]} dxc4 {[%emt 0:06:10]} 16. Qxc4 {[%emt 0:00:48]} Nf5 {[%emt 0:00:03]} 17. O-O {[%emt 0:15:23]} Rfe8 {[%emt 0:01:11]} 18. Rfd1 {[%emt 0:07:37]} Rad8 {[%emt 0:04:48]} 19. Rab1 {[%emt 0:01:19][%cal Od4d5]} Nh4 {[%emt 0:02:07]} 20. Qe2 {[%emt 0:06:34]} (20. Rxb7 $2 Nxf3+ 21. gxf3 Qxf3 $19) 20... Re7 {[%emt 0:02:12]} 21. Rbc1 {[%emt 0:09:35]} g6 {[%emt 0:10:13]} (21... Nxf3+ {simplifies} 22. Qxf3 Qxf3 23. gxf3 Rd5) 22. Rc4 {[%emt 0:01:26]} h5 {[%emt 0:01:38]} 23. Rb1 {[%emt 0:02:41]} Rd6 {[%emt 0:03:39]} 24. a4 {[%emt 0:02:39]} Qf5 {[%emt 0:03:42]} 25. Rcb4 {[%emt 0:07:23]} b6 {[%emt 0:15:28]} (25... Rxd4 {simplifies} 26. Rxb7 Nxf3+ 27. Qxf3 Qxf3 28. gxf3 Rxb7 29. Rxb7 Rxa4 30. Rc7 g5) 26. Rc1 {[%emt 0:00:17]} Ree6 {[%emt 0:00:53]} 27. Rbc4 {[%emt 0:00:27]} Kg7 {[%emt 0:00:53]} 28. Kh1 {[%emt 0:01:33]} (28. Bxc6 $2 Rxc6 29. Rxc6 Rxc6 30. Rxc6 Qd5 $17) (28. Kf1 $11) 28... Rf6 $1 $15 {[%emt 0:02:15][%cal Be6f6,Bf6f4,Bf4d4,Bd4d2,Bd2c2,Bc2c4][%mdl 32]} 29. e4 {[%emt 0:00:46]} (29. Bxc6 Rxc6 (29... Qxf2 30. Qxf2 Rxf2 31. e4 $11) 30. Rxc6 Rxc6 31. Rxc6 Qe4 $17) 29... Qg5 {[%emt 0:00:33]} (29... Qe6 $1 $17 {[%cal Of6f3] Strongly threatening ...Rxf3!} 30. Qb2 (30. e5 $2 Rxf3 31. Qf1 Nxg2 $19) 30... Nxf3) 30. Rg1 $2 {[%emt 0:01:04]} (30. e5 $2 Rxf3 31. Qf1 Rxd4 (31... Nxg2 32. Qxg2 Qf4 33. exd6 $11) 32. gxf3 (32. Rxd4 $2 Nxg2 33. Qxg2 Qxc1+ 34. Kh2 Qc3 $19) 32... Nxf3 (32... Qxe5 33. Re1 $17) 33. Rxd4 Qxe5 $19 (33... Nxd4 $2 34. Qe1 $17)) (30. Qe3 $1 $18 {[%cal Re3g5]} Nxf3 31. e5) 30... Rf4 {[%emt 0:05:17]} 31. e5 {[%emt 0:00:32]} (31. Qe3 $15 Nxf3 32. gxf3) 31... Rdxd4 {[%emt 0:00:22]} (31... Nxf3 $1 $17 32. exd6 Nxg1 33. Kxg1 Qd5) 32. Rxd4 {[%emt 0:00:32]} Rxd4 {[%emt 0:00:02]} 33. Bxc6 {[%emt 0:00:13]} Rd2 {[%emt 0:01:33]} 34. Qe1 {[%emt 0:00:43]} Nf5 {[%emt 0:01:45]} 35. Rf1 $1 {[%emt 0:00:40]} Qf4 {[%emt 0:01:52]} 36. Kg1 {[%emt 0:00:11]} Rc2 {[%emt 0:01:38]} 37. Be4 {[%emt 0:01:33]} Rc4 {[%emt 0:00:39]} 38. Bxf5 {[%emt 0:00:02]} Qxf5 {[%emt 0:00:06][%mdl 4096] Endgame. KQR-KQR} 39. Qa1 {[%emt 0:00:16]} Kh7 {[%emt 0:00:28]} 40. a5 {[%emt 0:01:52]} b5 {[%emt 0:00:05]} 41. Qb2 {[%emt 0:03:28]} (41. Re1 $15) 41... a6 $36 {[%emt 0:03:16][%mdl 2048] Black is in control.} 42. Re1 {[%emt 0:20:54][%cal Oe5e6]} Re4 $1 {[%emt 0:01:03]} 43. Rc1 {[%emt 0:01:58]} (43. Re2 $17) 43... Qxe5 {[%emt 0:02:06]} (43... Rxe5 $19 44. Rd1 Qf6) 44. Qxe5 {[%emt 0:01:21]} Rxe5 $19 {[%emt 0:00:39] KR-KR} 45. Rc6 {[%emt 0:00:15]} Re6 {[%emt 0:00:07]} 46. Rc7 {[%emt 0:00:27]} Kg7 {[%emt 0:00:12]} 47. Kh2 {[%emt 0:00:41]} (47. Ra7 $17) 47... Kf6 {[%emt 0:08:45]} 48. Kg3 {[%emt 0:00:30]} (48. f4 $142) 48... Rd6 {[%emt 0:02:19]} (48... Re7 $1 $19 {[%cal Re7c7]} 49. Rc6+ Ke5 (49... Re6 50. Rc7 $17) 50. Rxa6 Kd4) 49. Kf4 $17 {[%emt 0:01:29]} Re6 {[%emt 0:04:45]} (49... Kg7 $17 {And now ...Rd4+ would win.} 50. Ra7 Rf6+ 51. Ke3 Re6+ 52. Kd4 Rf6) 50. h4 {[%emt 0:00:33]} (50. Kg3 $1 $11) 50... Rd6 {[%emt 0:00:05]} 51. f3 {[%emt 0:01:12]} (51. Ke3 $17) 51... Rd4+ $1 $19 {[%emt 0:06:04]} 52. Ke3 {[%emt 0:00:19]} Rxh4 {[%emt 0:03:43]} 53. Rc6+ {[%emt 0:00:19]} Kg5 {[%emt 0:00:19]} 54. Rxa6 {[%emt 0:00:39]} Ra4 {[%emt 0:00:03]} 55. g3 {[%emt 0:00:53]} Ra3+ {[%emt 0:00:26]} (55... f6 $142 $1 56. Ra7 b4) 56. Kf2 {[%emt 0:00:36]} (56. Ke2 $142) 56... f6 $1 $17 {[%emt 0:00:21]} 57. Ke2 {[%emt 0:01:34]} Kf5 {[%emt 0:00:32]} 58. Ra8 {[%emt 0:00:41] [#]} g5 $1 {[%emt 0:04:31]} 59. a6 {[%emt 0:00:25] [#]} h4 $1 {[%emt 0:00:49]} 60. gxh4 {[%emt 0:00:59]} gxh4 {[%emt 0:00:01] aiming for ...Kf4.} 61. Rb8 $2 {[%emt 0:00:42][%mdl 8192]} (61. Rh8 $17 {keeps fighting.}) 61... Rxa6 $2 {[%emt 0:00:34]} (61... Kf4 $19 62. Rxb5 Ra2+ (62... Rxf3 63. Rf5+ Kxf5 64. Kxf3 h3 65. a7 h2 66. Kg2 Kg5 67. a8=Q) (62... Rxa6 63. Rb4+ Kg3 64. Rg4+ Kh3 65. Rg6 $11) 63. Kf1 Kg3 (63... Rxa6 64. Kg2 $11) (63... Kxf3 64. Rf5+ Kg3 65. Rxf6 $11)) 62. Rxb5+ $11 {[%emt 0:00:06]} Kf4 {[%emt 0:00:03]} 63. Rb4+ {[%emt 0:00:56]} Kg5 {[%emt 0:01:23] ...Ra2+ would now be deadly.} 64. Rg4+ {[%emt 0:00:15]} Kh5 {[%emt 0:00:01]} 65. Rg8 {[%emt 0:01:09]} f5 {[%emt 0:00:10]} 66. Kf2 {[%emt 0:00:28]} Rh6 {[%emt 0:01:12]} 67. Rf8 {[%emt 0:00:43]} (67. f4 $11 Rg6 68. Rxg6 Kxg6 69. Kg2) 67... Kg5 $1 $15 {[%emt 0:00:04]} 68. Ra8 {[%emt 0:00:29]} h3 {[%emt 0:01:19]} (68... Rh5 $15) 69. Kg3 $11 {[%emt 0:00:08] The position is equal.} h2 {[%emt 0:00:51]} 70. f4+ {[%emt 0:00:06]} Kh5 {[%emt 0:00:29]} (70... Kg6 $5 71. Ra6+ $8 Kh5 72. Rxh6+ Kxh6 73. Kxh2 Kg7 $11) 71. Kxh2 {[%emt 0:00:02]} Kg4+ {[%emt 0:00:08]} 72. Kg2 {[%emt 0:00:05]} Rb6 {[%emt 0:00:11]} 73. Ra3 {[%emt 0:00:13] White happily takes the draw.   Weighted Error Value: White=0.23 (precise) /Black=0.19 (very precise) .  Loses game:     	White=1     	Black=1      Missed win:     	White=1     	Black=1      Mistake:       	White=10    	Black=6      Inaccurate:     	White=1     	Black=1      OK:         	White=19    	Black=23     Best:        	White=12    	Black=5      Strong:       	White=1     	Black=7} 1/2-1/2

[Event "Czech Extraliga 2023-24"]
[Site "Czech Republic"]
[Date "2024.04.06"]
[Round "9.6"]
[White "Biolek, Richard Jr."]
[Black "Gnojek, Petr"]
[Result "1/2-1/2"]
[ECO "B18"]
[WhiteElo "2416"]
[BlackElo "2428"]
[Annotator "RC"]
[PlyCount "86"]
[EventDate "2023.10.14"]
[EventCountry "CZE"]
[SourceTitle "playchess.com"]
[Source "ChessBase"]
[SourceQuality "1"]
[TimeControl "40/5400+30:1800+30"]

1. e4 {[%emt 0:00:31]} c6 {[%emt 0:00:13]} 2. Nc3 {[%emt 0:05:45]} d5 {[%emt 0:00:09]} 3. d4 {[%emt 0:00:29]} dxe4 {[%emt 0:00:08]} 4. Nxe4 {[%emt 0:00:04]} Bf5 {[%emt 0:00:09]} 5. Ng3 {[%emt 0:00:03]} Bg6 {[%emt 0:00:05]} 6. Nh3 {[%emt 0:00:04]} Nf6 {[%emt 0:03:41]} 7. Nf4 {[%emt 0:00:18]} e5 {[%emt 0:00:10]} 8. Nxg6 {[%emt 0:00:07]} hxg6 {[%emt 0:02:02]} 9. dxe5 {[%emt 0:00:05]} Qxd1+ {[%emt 0:07:43]} 10. Kxd1 {[%emt 0:00:24]} Ng4 {[%emt 0:00:05]} 11. Ke2 {[%emt 0:02:31]} Nxe5 {[%emt 0:00:24]} 12. f4 {[%emt 0:00:30]} Ng4 {[%emt 0:01:44]} 13. h3 {[%emt 0:00:57]} Nf6 {[%emt 0:00:09]} 14. Kf3 {[%emt 0:00:08]} Bc5 {[%emt 0:08:39]} 15. Bc4 {[%emt 0:03:59]} O-O {[%emt 0:00:27]} 16. Re1 {[%emt 0:00:37]} Nbd7 {[%emt 0:00:17]} 17. Be3 {[%emt 0:00:12]} Rfe8 {[%emt 0:01:43]} 18. Rad1 {[%emt 0:21:03]} Rxe3+ {[%emt 0:02:54]} 19. Rxe3 {[%emt 0:00:09]} Bxe3 {[%emt 0:00:04]} 20. Kxe3 {[%emt 0:00:03]} Re8+ {[%emt 0:00:05]} 21. Kf3 {[%emt 0:02:07]} Nc5 {[%emt 0:00:36]} 22. b4 {[%emt 0:05:33]} Na4 {[%emt 0:09:01]} 23. Bb3 {[%emt 0:01:04]} Nc3 {[%emt 0:01:13]} 24. Rd3 {[%emt 0:00:04]} Ncd5 {[%emt 0:00:03]} 25. a3 {[%emt 0:01:08]} Kf8 {[%emt 0:14:10]} 26. c4 {[%emt 0:05:58]} Nc7 {[%emt 0:02:12]} 27. Nf1 {[%emt 0:03:25]} c5 {[%emt 0:03:55]} 28. Ba4 {[%emt 0:17:12]} Rc8 {[%emt 0:03:17]} 29. Nd2 {[%emt 0:06:08]} Ne6 {[%emt 0:02:39]} 30. g3 {[%emt 0:00:10]} b6 {[%emt 0:07:39]} 31. Kf2 {[%emt 0:04:51]} Ke7 {[%emt 0:02:36]} 32. Bd1 {[%emt 0:01:15]} Rc6 {[%emt 0:10:29]} 33. Bf3 {[%emt 0:02:19]} Rd6 {[%emt 0:00:05]} 34. Rxd6 {[%emt 0:00:11]} Kxd6 {[%emt 0:00:03]} 35. Nb3 {[%emt 0:04:25]} g5 {[%emt 0:04:32]} 36. bxc5+ {[%emt 0:00:06]} bxc5 {[%emt 0:00:18]} 37. Ke3 {[%emt 0:01:26]} gxf4+ {[%emt 0:03:25]} 38. gxf4 {[%emt 0:00:02]} Nd7 {[%emt 0:02:27]} 39. Bg4 {[%emt 0:04:25]} Nef8 {[%emt 0:05:30]} 40. Nd2 {[%emt 0:04:08]} Nb6 {[%emt 0:00:27]} 41. h4 {[%emt 0:34:59]} g6 {[%emt 0:33:16]} 42. h5 {[%emt 0:00:00]} gxh5 {[%emt 0:00:00]} 43. Bxh5 {[%emt 0:00:00]} f5 {[%emt 0:00:00]} 1/2-1/2

[Event "Czech Extraliga 2023-24"]
[Site "Czech Republic"]
[Date "2024.04.06"]
[Round "9.6"]
[White "Smolik, Jachym"]
[Black "Rydl, Jiri"]
[Result "0-1"]
[ECO "A11"]
[WhiteElo "2351"]
[BlackElo "2410"]
[Annotator "TA"]
[PlyCount "90"]
[EventDate "2023.10.14"]
[EventCountry "CZE"]
[SourceTitle "playchess.com"]
[Source "ChessBase"]
[SourceQuality "1"]
[TimeControl "40/5400+30:1800+30"]

{[%evp 9,90,14,6,0,0,-14,-19,-20,-18,-37,-29,-26,-1,-64,-20,-30,-19,-43,0,-51,-11,-13,-2,0,0,0,0,0,0,0,0,0,0,0,0,0,0,0,0,-7,0,0,0,0,0,-125,-115,-197,-206,-431,-323,-803,-773,-691,-635,-752,-757,-734,-733,-1096,-1059,-1106,-1090,-1126,-1112,-1361,-743,-716,-736,-728,-709,-1136,-1136,-1144,-1134,-1144,-1160,-1763,-1518,-1693,-1791,-1837,-1705]} 1. Nf3 {[%emt 0:00:03]} d5 {[%emt 0:00:26]} 2. e3 {[%emt 0:00:06]} Nf6 {[%emt 0:00:44]} 3. c4 {[%emt 0:00:05]} c6 {[%emt 0:00:15]} 4. Nc3 {[%emt 0:00:09]} Bg4 {[%emt 0:02:41]} 5. cxd5 {[%emt 0:02:25]} Bxf3 {[%emt 0:00:24]} 6. gxf3 {[%emt 0:00:44]} cxd5 {[%emt 0:02:53]} 7. Qb3 {[%emt 0:01:07]} Qd7 {[%emt 0:00:23]} 8. d4 {[%emt 0:04:59] The position is equal.} Nc6 {[%emt 0:02:02]} 9. Bb5 {[%emt 0:01:08]} e6 {[%emt 0:00:11]} 10. Bd2 {[%emt 0:00:51]} Rc8 {[%emt 0:06:38]} 11. Na4 {[%emt 0:04:40]} (11. Rc1 $11) 11... Be7 {[%emt 0:02:25]} 12. Rc1 {[%emt 0:01:20]} O-O {[%emt 0:00:55]} 13. O-O {[%emt 0:03:59]} Rc7 {[%emt 0:07:48]} 14. Rc3 {[%emt 0:16:52]} (14. Ba5 $11 Rcc8 (14... Nxa5 $2 {loses.} 15. Bxd7 Rxc1 16. Qb5 $18) 15. Bd2) 14... Rfc8 {[%emt 0:06:44]} 15. Rfc1 {[%emt 0:02:05]} h5 {[%emt 0:03:19]} 16. Nc5 {[%emt 0:14:33]} Bxc5 {[%emt 0:00:40]} 17. Rxc5 {[%emt 0:00:01]} a6 {[%emt 0:18:20]} 18. Be2 {[%emt 0:01:34]} Ne7 {[%emt 0:01:08]} 19. Qb6 {[%emt 0:04:37]} Rxc5 {[%emt 0:01:32]} 20. Rxc5 {[%emt 0:00:03]} Rxc5 {[%emt 0:02:28]} 21. Qxc5 {[%emt 0:03:08]} Nf5 {[%emt 0:00:31]} 22. Bb4 {[%emt 0:03:31]} Nh7 {[%emt 0:08:23][%cal Bf6h7,Bh7g5,Bg5h3,Bh3g1][%mdl 32]} 23. b3 {[%emt 0:01:39]} Qd8 {[%emt 0:02:24]} 24. Kf1 {[%emt 0:16:09]} b6 {[%emt 0:06:35]} 25. Qc6 {[%emt 0:00:01][%cal Oe2d3]} a5 $36 {[%emt 0:00:06][%mdl 2048] Black has some pressure.} 26. Bc3 {[%emt 0:01:42]} Ng5 {[%emt 0:01:35]} 27. Ke1 {[%emt 0:05:20] [#]} (27. f4 $11 {keeps the balance.} Ne7 28. Qa4) 27... Nh3 $1 $17 {[%emt 0:02:44] ...Qh4 is the strong threat. Black keeps a firm grip on the game.} 28. Bf1 {[%emt 0:04:13]} (28. e4 $17 {was worth a try.} Nh4 29. exd5 exd5 30. Bd2) 28... Ng1 $19 {[%emt 0:00:25]} 29. Bg2 $2 {[%emt 0:02:05]} (29. Kd1) 29... Nh4 {[%emt 0:01:25]} 30. Kf1 {[%emt 0:01:50]} (30. Bh1) 30... Qg5 {[%emt 0:00:19] Black is clearly winning.} 31. Bh1 {[%emt 0:00:39]} Qg6 {[%emt 0:00:23]} 32. e4 {[%emt 0:01:14]} Nh3 {[%emt 0:00:59] White must now prevent ...Qg1+.} 33. Ke2 {[%emt 0:00:37]} Qg1 {[%emt 0:01:58][%csl LRf2,LRh1,LRh2]} 34. Qe8+ {[%emt 0:02:12]} Kh7 {[%emt 0:00:08]} 35. Qxf7 {[%emt 0:00:01]} Ng6 {[%emt 0:00:13]} (35... Qxh1 36. Qxh5+ Kg8 37. Qe8+ Kh7 38. Qh5+ Kg8 39. Qe8+ Kh7 40. Qh5+ $11) 36. Bd2 {[%emt 0:00:54]} Qxh1 {[%emt 0:00:32]} 37. exd5 exd5 {[%emt 0:02:27]} 38. Qf5 {[%emt 0:00:43] Prevents Qb1.} Ng1+ {[%emt 0:00:09]} (38... Qxh2 39. Qxh5+ Kg8 40. Qxd5+ (40. Qxg6 Qxf2+ 41. Kd1 Qxf3+ 42. Ke1 Nf2 $17) 40... Kh8 41. Qh5+ Kg8 42. Qxg6 Qxf2+ 43. Kd3 Qxf3+ 44. Kc4 $11) 39. Ke3 {[%emt 0:00:25]} Qxh2 {[%emt 0:00:06]} 40. Qxd5 {[%emt 0:00:08]} Qf4+ {[%emt 0:00:46]} 41. Kd3 {[%emt 0:30:01]} Qxf3+ {[%emt 0:30:30]} 42. Qxf3 Nxf3 {[%emt 0:00:09]} 43. Be3 {[%emt 0:00:12]} h4 {[%emt 0:01:49]} 44. Ke2 {[%emt 0:01:02] [#]} Nxd4+ $1 45. Bxd4 {[%emt 0:00:09]} (45. Kf1 h3) 45... h3 {[%emt 0:02:12] Weighted Error Value: White=0.94/Black=0.18 (very precise) .  Mistake:       	White=6     	---        Inaccurate:     	---       	Black=3      OK:         	White=8     	Black=14     Best:        	---       	Black=1} 0-1

[Event "Czech Extraliga 2023-24"]
[Site "Czech Republic"]
[Date "2024.04.06"]
[Round "9.7"]
[White "Jirovsky, Milos"]
[Black "Kusa, Jakub"]
[Result "1/2-1/2"]
[ECO "A13"]
[WhiteElo "2458"]
[BlackElo "2350"]
[Annotator "TA"]
[PlyCount "80"]
[EventDate "2023.10.14"]
[EventCountry "CZE"]
[SourceTitle "playchess.com"]
[Source "ChessBase"]
[SourceQuality "1"]
[TimeControl "40/5400+30:1800+30"]

{[%evp 22,80,-2,0,-9,-8,0,-46,-36,-29,-37,-38,-25,-21,-24,-29,-24,-27,-17,-16,-14,-14,0,0,0,0,0,0,0,0,0,0,0,0,0,0,0,0,0,0,0,0,0,0,0,0,0,0,0,0,0,0,0,0,0,0,0,0,0,0,0]} 1. Nf3 {[%emt 0:00:04]} d5 {[%emt 0:00:14]} 2. c4 {[%emt 0:00:14]} e6 {[%emt 0:00:24]} 3. g3 {[%emt 0:01:20]} dxc4 {[%emt 0:00:27]} 4. Qa4+ {[%emt 0:00:16]} Nd7 {[%emt 0:00:28]} 5. Bg2 {[%emt 0:00:16]} a6 {[%emt 0:01:56]} 6. Qxc4 {[%emt 0:00:12]} b5 {[%emt 0:05:06]} 7. Qc2 {[%emt 0:01:08]} Bb7 {[%emt 0:00:16]} 8. O-O {[%emt 0:00:12]} c5 {[%emt 0:00:58]} 9. a4 {[%emt 0:00:31]} Ngf6 {[%emt 0:01:14]} 10. axb5 {[%emt 0:03:39]} axb5 {[%emt 0:00:33]} 11. Rxa8 {[%emt 0:00:02]} Qxa8 {[%emt 0:00:57]} 12. Na3 {[%emt 0:00:11]} Bc6 {[%emt 0:01:18]} 13. d3 {[%emt 0:00:47]} Be7 {[%emt 0:00:42]} 14. Bg5 {[%emt 0:00:37]} (14. Nh4 $11) 14... O-O $15 {[%emt 0:01:57][%cal Bh8f8,Bf8b8,Bb8b2][%mdl 32] Black is slightly better.} 15. Ne1 {[%emt 0:03:24]} Bxg2 {[%emt 0:04:38]} 16. Nxg2 {[%emt 0:00:51]} Qc6 {[%emt 0:00:49]} 17. Rc1 {[%emt 0:02:18]} h6 {[%emt 0:03:04]} 18. Bxf6 {[%emt 0:01:33]} Bxf6 {[%emt 0:06:04]} 19. Ne1 {[%emt 0:01:44]} Rb8 {[%emt 0:04:03]} 20. Nf3 {[%emt 0:01:42] The position is equal.} Qd5 {[%emt 0:05:24]} 21. Nb1 {[%emt 0:02:03]} c4 {[%emt 0:09:26]} 22. dxc4 {[%emt 0:07:26]} bxc4 {[%emt 0:00:51]} 23. Qxc4 {[%emt 0:00:27]} Qxc4 {[%emt 0:00:43]} 24. Rxc4 {[%emt 0:00:04]} Rxb2 {[%emt 0:00:52]} 25. Nbd2 {[%emt 0:00:16]} Ne5 {[%emt 0:02:37]} 26. Rc8+ {[%emt 0:00:36]} Kh7 {[%emt 0:00:10]} 27. Kf1 {[%emt 0:00:19]} Nxf3 {[%emt 0:01:31]} 28. Nxf3 $11 {[%emt 0:00:04][%mdl 4096] Endgame. KRB-KRN} g6 {[%emt 0:02:50]} 29. Rc7 {[%emt 0:00:35]} Kg8 {[%emt 0:01:47]} 30. h4 {[%emt 0:00:21]} h5 {[%emt 0:03:50]} 31. e3 {[%emt 0:00:42]} Rb1+ {[%emt 0:00:55]} 32. Kg2 {[%emt 0:00:08]} Rb4 {[%emt 0:00:42]} 33. Nd2 {[%emt 0:00:29]} Be5 {[%emt 0:01:11]} 34. Rc5 {[%emt 0:03:01]} Bd6 {[%emt 0:01:21]} 35. Rc6 {[%emt 0:00:07]} Be7 {[%emt 0:01:11]} 36. Kf3 {[%emt 0:00:41]} Rb7 {[%emt 0:00:48]} 37. Ne4 {[%emt 0:01:37]} Kg7 {[%emt 0:00:38]} 38. Nc5 {[%emt 0:00:39]} Bxc5 {[%emt 0:00:08]} 39. Rxc5 {[%emt 0:00:02]} Kf6 {[%emt 0:00:20]} 40. Rc4 {[%emt 0:00:05]} Rb5 {[%emt 0:00:11] Weighted Error Value: White=0.02 (flawless) /Black=0.02 (flawless) .  Mistake:       	White=1     	---        OK:         	White=13    	Black=8      Best:        	---       	Black=1} 1/2-1/2

[Event "Czech Extraliga 2023-24"]
[Site "Czech Republic"]
[Date "2024.04.06"]
[Round "9.7"]
[White "Mica, Marek"]
[Black "Velicka, Petr"]
[Result "1-0"]
[ECO "D15"]
[WhiteElo "2364"]
[BlackElo "2369"]
[Annotator "RC"]
[PlyCount "107"]
[EventDate "2023.10.14"]
[EventCountry "CZE"]
[SourceTitle "playchess.com"]
[Source "ChessBase"]
[SourceQuality "1"]
[TimeControl "40/5400+30:1800+30"]

1. d4 {[%emt 0:00:06]} d5 {[%emt 0:00:06]} 2. c4 {[%emt 0:00:14]} c6 {[%emt 0:00:06]} 3. Nf3 {[%emt 0:00:22]} Nf6 {[%emt 0:00:06]} 4. Qb3 {[%emt 0:00:49]} Qb6 {[%emt 0:05:05]} 5. Nc3 {[%emt 0:00:27]} Bf5 {[%emt 0:04:51]} 6. c5 {[%emt 0:00:13]} Qc7 {[%emt 0:00:11]} 7. Bf4 {[%emt 0:01:36]} Qc8 {[%emt 0:00:06]} 8. h3 {[%emt 0:03:59]} h6 {[%emt 0:02:26]} 9. e3 {[%emt 0:00:29]} e6 {[%emt 0:00:22]} 10. Be2 {[%emt 0:02:09]} Be7 {[%emt 0:00:19]} 11. O-O {[%emt 0:00:22]} O-O {[%emt 0:00:21]} 12. Rfc1 {[%emt 0:01:43]} Nbd7 {[%emt 0:01:27]} 13. Qd1 {[%emt 0:03:24]} Bd8 {[%emt 0:20:56]} 14. b4 {[%emt 0:13:29]} Bc7 {[%emt 0:00:10]} 15. Bxc7 {[%emt 0:11:06]} Qxc7 {[%emt 0:00:08]} 16. b5 {[%emt 0:01:27]} Ne4 {[%emt 0:06:43]} 17. a4 {[%emt 0:13:18]} Nxc3 {[%emt 0:02:38]} 18. Rxc3 {[%emt 0:00:11]} Be4 {[%emt 0:04:35]} 19. Nd2 {[%emt 0:02:34]} Bh7 {[%emt 0:00:57]} 20. a5 {[%emt 0:05:38]} cxb5 {[%emt 0:06:33]} 21. Bxb5 {[%emt 0:00:37]} a6 {[%emt 0:00:52]} 22. Bxd7 {[%emt 0:01:00]} Qxd7 {[%emt 0:00:13]} 23. Qa4 {[%emt 0:10:19]} Rfd8 {[%emt 0:00:26]} 24. Qxd7 {[%emt 0:02:40]} Rxd7 {[%emt 0:00:15]} 25. Ra2 {[%emt 0:01:35]} Rc8 {[%emt 0:00:59]} 26. Rb2 {[%emt 0:00:34]} Kf8 {[%emt 0:01:39]} 27. Rb6 {[%emt 0:05:30]} Ke7 {[%emt 0:00:42]} 28. c6 {[%emt 0:03:20]} Rxc6 {[%emt 0:00:15]} 29. Rcxc6 {[%emt 0:00:08]} bxc6 {[%emt 0:00:06]} 30. Nb3 {[%emt 0:00:07]} Ra7 {[%emt 0:04:28]} 31. Nc5 {[%emt 0:00:38]} Kd6 {[%emt 0:00:18]} 32. Kf1 {[%emt 0:00:37]} e5 {[%emt 0:00:46]} 33. Ke2 {[%emt 0:01:46]} Bf5 {[%emt 0:07:48]} 34. Rxa6 {[%emt 0:01:15]} Rxa6 {[%emt 0:00:32]} 35. Nxa6 {[%emt 0:00:23]} exd4 {[%emt 0:04:21]} 36. exd4 {[%emt 0:00:10]} c5 {[%emt 0:00:40]} 37. Nxc5 {[%emt 0:02:23]} Kc6 {[%emt 0:00:13]} 38. Ke3 {[%emt 0:06:29]} Bc8 {[%emt 0:00:37]} 39. Kf4 {[%emt 0:01:27]} f6 {[%emt 0:00:39]} 40. g4 {[%emt 0:03:38]} Kb5 {[%emt 0:00:35]} 41. a6 {[%emt 0:32:13]} Bxa6 {[%emt 0:36:38]} 42. Ne6 {[%emt 0:00:00]} Kc4 {[%emt 0:00:00]} 43. Ke3 {[%emt 0:00:00]} g5 {[%emt 0:00:00]} 44. Ng7 {[%emt 0:00:00]} Kc3 {[%emt 0:00:00]} 45. Nh5 {[%emt 0:00:00]} Bc8 {[%emt 0:00:00]} 46. Nxf6 {[%emt 0:00:00]} Be6 {[%emt 0:00:00]} 47. Nh5 {[%emt 0:00:00]} Bf7 {[%emt 0:00:00]} 48. Ng3 {[%emt 0:00:00]} Be6 {[%emt 0:01:02]} 49. Ne2+ {[%emt 0:00:00]} Kc4 {[%emt 0:06:36]} 50. f4 {[%emt 0:00:00]} gxf4+ {[%emt 0:00:31]} 51. Nxf4 {[%emt 0:00:00]} Bd7 {[%emt 0:01:11]} 52. Nd3 {[%emt 0:00:00]} Kc3 {[%emt 0:01:04]} 53. Ne5 {[%emt 0:00:00]} Be6 {[%emt 0:00:17]} 54. h4 {[%emt 0:00:00]} 1-0